fUST/lending_fUST_20240525
["ID","MTS","AMOUNT","RATE_DAILY","PERIOD"]
[327871758,1716568245478,-24792.16255321,0.00026027,11]
[327871759,1716568245488,-500.0,0.00026027,7]
[327871760,1716568245497,-500.0,0.00026027,7]
[327871761,1716568245506,-500.0,0.00026027,7]
[327871762,1716568245516,-500.0,0.00026027,7]
[327871763,1716568245525,-500.0,0.00026027,7]
[327871764,1716568245534,-500.0,0.00026027,7]
[327871765,1716568245543,-500.0,0.00026027,7]
[327871766,1716568245553,-500.0,0.00026027,7]
[327871767,1716568245562,-500.0,0.00026027,7]
[327871768,1716568245572,-500.0,0.00026027,7]
[327871769,1716568245581,-500.0,0.00026027,7]
[327871770,1716568245591,-759.44,0.00026027,7]
[327871771,1716568245600,-500.0,0.00026027,7]
[327871772,1716568245609,-533.91,0.00026027,7]
[327871773,1716568245618,-500.0,0.00026027,7]
[327871774,1716568245627,-647.29,0.00026027,7]
[327871775,1716568245636,-500.0,0.00026027,7]
[327871776,1716568245645,-500.0,0.00026027,7]
[327871777,1716568245655,-500.0,0.00026027,7]
[327871778,1716568245664,-602.44,0.00026027,7]
[327871779,1716568245673,-500.0,0.00026027,7]
[327871780,1716568245683,-500.0,0.00026027,7]
[327871781,1716568245692,-2767.02,0.00026027,7]
[327871782,1716568245702,-500.0,0.00026027,7]
[327871783,1716568245711,-880.44,0.00026027,7]
[327871784,1716568245721,-1824.81,0.00026027,2]
[327871785,1716568245731,-500.0,0.00026027,7]
[327871786,1716568245741,-500.0,0.00026027,7]
[327871787,1716568245751,-500.0,0.00026027,7]
[327871788,1716568245761,-500.0,0.00026027,7]
[327871789,1716568245771,-656.46,0.00026027,7]
[327871790,1716568245781,-500.0,0.00026027,7]
[327871791,1716568245791,-862.89,0.00026027,7]
[327871792,1716568245800,-578.51554875,0.00026027,7]
[327871793,1716568245810,-500.0,0.00026027,7]
[327871794,1716568245820,-247.74515889,0.00026027,7]
[327871795,1716568245829,-500.0,0.00026027,7]
[327871796,1716568245844,-698.26,0.00026027,7]
[327871797,1716568245853,-569.15,0.00026027,7]
[327871798,1716568245862,-1670.0,0.00026027,7]
[327871799,1716568245872,-500.0,0.00026027,7]
[327871800,1716568245884,-1633.23,0.00026027,7]
[327871801,1716568245893,-154.14772929,0.00026027,7]
[327871802,1716568245903,-709.0,0.00026027,7]
[327871803,1716568245914,-590.21,0.00026027,7]
[327871804,1716568245924,-602.32,0.00026027,7]
[327871805,1716568245934,-1018.95,0.00026027,7]
[327871806,1716568245943,-719.94,0.00026027,7]
[327871808,1716568246100,-500.0,0.00026027,7]
[327871809,1716568246110,-601.86,0.00026027,7]
[327871810,1716568246119,-500.0,0.00026027,7]
[327871811,1716568246130,-5206.65,0.00026027,7]
[327871812,1716568246139,-1810.43,0.00026027,7]
[327871813,1716568246149,-5609.35,0.00026027,7]
[327871814,1716568246158,-500.0,0.00026027,7]
[327871815,1716568246167,-500.0,0.00026027,7]
[327871816,1716568246176,-500.0,0.00026027,7]
[327871817,1716568246185,-500.0,0.00026027,7]
[327871818,1716568246195,-697.67,0.00026027,7]
[327871819,1716568246204,-585.9,0.00026027,7]
[327871820,1716568246214,-4612.72,0.00026027,7]
[327871821,1716568246223,-500.0,0.00026027,7]
[327871822,1716568246233,-151.0,0.00026091,5]
[327871823,1716568246242,-35299.97,0.000263,17]
[327871824,1716568246251,-491.05,0.000263,3]
[327871825,1716568246260,-500.0,0.00026301,8]
[327871826,1716568246270,-500.0,0.00026301,8]
[327871827,1716568246279,-500.0,0.00026301,8]
[327871828,1716568246288,-500.0,0.00026301,8]
[327871829,1716568246298,-500.0,0.00026301,8]
[327871830,1716568246307,-500.0,0.00026301,8]
[327871831,1716568246316,-500.0,0.00026301,8]
[327871832,1716568246326,-500.0,0.00026301,8]
[327871833,1716568246334,-500.0,0.00026301,8]
[327871834,1716568246344,-500.0,0.00026301,8]
[327871835,1716568246353,-500.0,0.00026301,8]
[327871836,1716568246362,-759.44,0.00026301,8]
[327871837,1716568246371,-500.0,0.00026301,8]
[327871838,1716568246381,-533.91,0.00026301,8]
[327871839,1716568246391,-500.0,0.00026301,8]
[327871840,1716568246400,-647.29,0.00026301,8]
[327871841,1716568246409,-500.0,0.00026301,8]
[327871842,1716568246419,-500.0,0.00026301,8]
[327871843,1716568246428,-500.0,0.00026301,8]
[327871844,1716568246437,-602.44,0.00026301,8]
[327871845,1716568246447,-500.0,0.00026301,8]
[327871846,1716568246456,-405.48913449,0.00026301,8]
[327871847,1716568246466,-2767.02,0.00026301,8]
[327871848,1716568246475,-500.0,0.00026301,8]
[327871849,1716568246485,-880.44,0.00026301,8]
[327871850,1716568246495,-1824.81,0.00026301,2]
[327871851,1716568246504,-500.0,0.00026301,8]
[327871852,1716568246513,-500.0,0.00026301,8]
[327871853,1716568246522,-500.0,0.00026301,8]
[327871854,1716568246531,-656.46,0.00026301,8]
[327871855,1716568246541,-500.0,0.00026301,8]
[327871856,1716568246550,-862.89,0.00026301,8]
[327871857,1716568246559,-500.0,0.00026301,8]
[327871858,1716568246569,-500.0,0.00026301,8]
[327871859,1716568246578,-698.26,0.00026301,8]
[327871860,1716568246587,-569.15,0.00026301,8]
[327871861,1716568246597,-1670.0,0.00026301,8]
[327871862,1716568246606,-500.0,0.00026301,8]
[327871863,1716568246616,-1633.23,0.00026301,8]
[327871864,1716568246625,-709.0,0.00026301,8]
[327871865,1716568246635,-590.21,0.00026301,8]
[327871866,1716568246644,-602.32,0.00026301,8]
[327871867,1716568246654,-1018.95,0.00026301,8]
[327871868,1716568246663,-719.94,0.00026301,8]
[327871869,1716568246673,-500.0,0.00026301,8]
[327871870,1716568246683,-601.86,0.00026301,8]
[327871871,1716568246692,-5206.65,0.00026301,8]
[327871872,1716568246702,-1810.43,0.00026301,8]
[327871873,1716568246711,-5609.35,0.00026301,8]
[327871874,1716568246720,-247.76554986,0.00026301,8]
[327871875,1716568246730,-500.0,0.00026301,8]
[327871876,1716568246740,-500.0,0.00026301,8]
[327871877,1716568246749,-500.0,0.00026301,8]
[327871878,1716568246758,-697.67,0.00026301,8]
[327871879,1716568246768,-585.9,0.00026301,8]
[327871880,1716568246778,-4612.72,0.00026301,8]
[327871881,1716568246788,-553.94,0.00026301,8]
[327871882,1716568246797,-419.099999,0.000264,2]
[327871883,1716568246807,-35299.97,0.00026574,18]
[327871884,1716568246816,-500.0,0.00026575,9]
[327871885,1716568246825,-500.0,0.00026575,9]
[327871886,1716568246835,-425.95696367,0.00026575,9]
[327871887,1716568246847,-500.0,0.00026575,9]
[327871888,1716568246857,-500.0,0.00026575,9]
[327871889,1716568246866,-500.0,0.00026575,9]
[327871890,1716568246875,-500.0,0.00026575,9]
[327871891,1716568246886,-500.0,0.00026575,9]
[327871892,1716568246895,-500.0,0.00026575,9]
[327871893,1716568246905,-500.0,0.00026575,9]
[327871894,1716568246914,-759.44,0.00026575,9]
[327871895,1716568246927,-500.0,0.00026575,9]
[327871896,1716568246938,-533.91,0.00026575,9]
[327871897,1716568246947,-500.0,0.00026575,9]
[327871898,1716568246957,-647.29,0.00026575,9]
[327871899,1716568246966,-500.0,0.00026575,9]
[327871900,1716568246975,-500.0,0.00026575,9]
[327871901,1716568246985,-500.0,0.00026575,9]
[327871902,1716568246995,-602.44,0.00026575,9]
[327871903,1716568247004,-2767.02,0.00026575,9]
[327871904,1716568247014,-500.0,0.00026575,9]
[327871905,1716568247023,-880.44,0.00026575,9]
[327871906,1716568247033,-1824.81,0.00026575,2]
[327871907,1716568247043,-500.0,0.00026575,9]
[327871908,1716568247052,-500.0,0.00026575,9]
[327871909,1716568247061,-500.0,0.00026575,9]
[327871910,1716568247070,-656.46,0.00026575,9]
[327871911,1716568247079,-862.89,0.00026575,9]
[327871912,1716568247089,-500.0,0.00026575,9]
[327871913,1716568247099,-698.26,0.00026575,9]
[327871914,1716568247108,-569.15,0.00026575,9]
[327871915,1716568247118,-1670.0,0.00026575,9]
[327871916,1716568247127,-151.0,0.00026575,2]
[327871917,1716568247137,-151.0,0.00026575,2]
[327871918,1716568247147,-151.0,0.00026575,2]
[327871919,1716568247156,-151.0,0.00026575,2]
[327871920,1716568247166,-500.0,0.00026575,9]
[327871921,1716568247176,-1633.23,0.00026575,9]
[327871922,1716568247185,-709.0,0.00026575,9]
[327871923,1716568247195,-590.21,0.00026575,9]
[327871924,1716568247205,-602.32,0.00026575,9]
[327871925,1716568247214,-1018.95,0.00026575,9]
[327871926,1716568247224,-153.405585,0.00026575,2]
[327871927,1716568247233,-151.0,0.00026575,2]
[327871928,1716568247243,-151.0,0.00026575,2]
[327871929,1716568247253,-719.94,0.00026575,9]
[327871930,1716568247263,-197.10364585,0.00026575,9]
[327871931,1716568247272,-151.0,0.00026575,2]
[327871932,1716568247287,-601.86,0.00026575,9]
[327871933,1716568247297,-151.0,0.00026575,2]
[327871934,1716568247306,-151.0,0.00026575,2]
[327871935,1716568247316,-5206.65,0.00026575,9]
[327871936,1716568247326,-151.0,0.00026575,2]
[327871937,1716568247336,-646.370388,0.00026575,2]
[327871938,1716568247346,-1810.43,0.00026575,9]
[327871939,1716568247355,-5609.35,0.00026575,9]
[327871940,1716568247365,-646.370388,0.00026575,2]
[327871941,1716568247375,-254.410392,0.00026575,2]
[327871942,1716568247386,-500.0,0.00026575,9]
[327871943,1716568247395,-254.410392,0.00026575,2]
[327871944,1716568247405,-500.0,0.00026575,9]
[327871945,1716568247415,-500.0,0.00026575,9]
[327871946,1716568247424,-697.67,0.00026575,9]
[327871947,1716568247434,-585.9,0.00026575,9]
[327871948,1716568247444,-4612.72,0.00026575,9]
[327871949,1716568247454,-151.0,0.00026632,5]
[327871950,1716568247464,-204.6274004,0.0002667,2]
[327871951,1716568247474,-204.6274004,0.0002667,2]
[327871952,1716568247483,-265.850114,0.00026848,2]
[327871953,1716568247493,-265.850114,0.00026848,2]
[327871954,1716568247503,-548.731622,0.00026848,2]
[327871955,1716568247512,-548.731622,0.00026848,2]
[327871956,1716568247522,-151.0,0.00026848,2]
[327871957,1716568247531,-35299.97,0.00026848,19]
[327871958,1716568247540,-166.810021,0.00026848,2]
[327871959,1716568247550,-166.810021,0.00026848,2]
[327871960,1716568247559,-151.0,0.00026848,2]
[327871961,1716568247569,-151.0,0.00026848,2]
[327871962,1716568247578,-237.351224,0.00026848,2]
[327871963,1716568247588,-207.784917,0.00026848,2]
[327871964,1716568247597,-311.049459,0.00026848,2]
[327871965,1716568247606,-311.049459,0.00026848,2]
[327871966,1716568247616,-500.0,0.00026849,10]
[327871967,1716568247625,-500.0,0.00026849,10]
[327871968,1716568247636,-500.0,0.00026849,10]
[327871969,1716568247645,-504.4152851,0.00026849,10]
[327871970,1716568247655,-500.0,0.00026849,10]
[327871971,1716568247664,-500.0,0.00026849,10]
[327871972,1716568247674,-500.0,0.00026849,10]
[327871973,1716568247683,-500.0,0.00026849,10]
[327871974,1716568247694,-500.0,0.00026849,10]
[327871975,1716568247704,-759.44,0.00026849,10]
[327871976,1716568247713,-500.0,0.00026849,10]
[327871977,1716568247723,-533.91,0.00026849,10]
[327871978,1716568247733,-500.0,0.00026849,10]
[327871979,1716568247743,-647.29,0.00026849,10]
[327871980,1716568247753,-500.0,0.00026849,10]
[327871981,1716568247762,-500.0,0.00026849,10]
[327871982,1716568247771,-500.0,0.00026849,10]
[327871983,1716568247780,-602.44,0.00026849,10]
[327871984,1716568247790,-2767.02,0.00026849,10]
[327871985,1716568247799,-500.0,0.00026849,10]
[327871986,1716568247809,-880.44,0.00026849,10]
[327871987,1716568247818,-1824.81,0.00026849,2]
[327871988,1716568247828,-500.0,0.00026849,10]
[327871989,1716568247841,-500.0,0.00026849,10]
[327871990,1716568247852,-500.0,0.00026849,10]
[327871991,1716568247861,-656.46,0.00026849,10]
[327871992,1716568247871,-862.89,0.00026849,10]
[327871993,1716568247880,-500.0,0.00026849,10]
[327871994,1716568247891,-698.26,0.00026849,10]
[327871995,1716568247900,-569.15,0.00026849,10]
[327871996,1716568247909,-1670.0,0.00026849,10]
[327871997,1716568247922,-500.0,0.00026849,10]
[327871998,1716568247932,-1633.23,0.00026849,10]
[327871999,1716568247943,-709.0,0.00026849,10]
[327872000,1716568247953,-590.21,0.00026849,10]
[327872002,1716568247963,-602.32,0.00026849,10]
[327872004,1716568247972,-1018.95,0.00026849,10]
[327872006,1716568247982,-719.94,0.00026849,10]
[327872008,1716568247991,-601.86,0.00026849,10]
[327872010,1716568248000,-5206.65,0.00026849,10]
[327872012,1716568248011,-1810.43,0.00026849,10]
[327872014,1716568248019,-5609.35,0.00026849,10]
[327872016,1716568248029,-1012.10349864,0.00026849,2]
[327872018,1716568248038,-500.0,0.00026849,10]
[327872020,1716568248047,-500.0,0.00026849,10]
[327872022,1716568248057,-500.0,0.00026849,10]
[327872023,1716568248066,-697.67,0.00026849,10]
[327872024,1716568248076,-585.9,0.00026849,10]
[327872026,1716568248086,-4612.72,0.00026849,10]
[327872028,1716568248095,-282.352207,0.00026982,2]
[327872030,1716568248105,-361.0,0.00027,2]
[327872032,1716568248115,-35299.97,0.00027122,20]
[327872035,1716568248124,-500.0,0.00027123,11]
[327872037,1716568248133,-500.0,0.00027123,11]
[327872038,1716568248143,-500.0,0.00027123,11]
[327872039,1716568248152,-500.0,0.00027123,11]
[327872040,1716568248162,-500.0,0.00027123,11]
[327872041,1716568248172,-191.74406954,0.00027123,11]
[327872042,1716568248181,-500.0,0.00027123,11]
[327872043,1716568248191,-500.0,0.00027123,11]
[327872044,1716568248200,-759.44,0.00027123,11]
[327872045,1716568248209,-500.0,0.00027123,11]
[327872046,1716568248218,-533.91,0.00027123,11]
[327872047,1716568248227,-500.0,0.00027123,11]
[327872048,1716568248237,-647.29,0.00027123,11]
[327872050,1716568248246,-500.0,0.00027123,11]
[327872051,1716568248256,-377.94362551,0.00027123,11]
[327872052,1716568248266,-500.0,0.00027123,11]
[327872053,1716568248276,-602.44,0.00027123,11]
[327872054,1716568248285,-2767.02,0.00027123,11]
[327872055,1716568248295,-151.0,0.00027123,2]
[327872056,1716568248304,-151.771481,0.00027123,2]
[327872057,1716568248314,-500.0,0.00027123,11]
[327872058,1716568248324,-151.0,0.00027123,2]
[327872059,1716568248333,-880.44,0.00027123,11]
[327872060,1716568248342,-1824.81,0.00027123,2]
[327872061,1716568248351,-151.771481,0.00027123,2]
[327872062,1716568248362,-500.0,0.00027123,11]
[327872064,1716568248371,-801.585951,0.00027123,2]
[327872066,1716568248382,-801.585951,0.00027123,2]
[327872067,1716568248391,-500.0,0.00027123,11]
[327872069,1716568248401,-151.0,0.00027123,2]
[327872071,1716568248410,-500.0,0.00027123,11]
[327872073,1716568248419,-656.46,0.00027123,11]
[327872075,1716568248429,-862.89,0.00027123,11]
[327872077,1716568248438,-500.0,0.00027123,11]
[327872079,1716568248448,-698.26,0.00027123,11]
[327872081,1716568248458,-569.15,0.00027123,11]
[327872083,1716568248467,-1670.0,0.00027123,11]
[327872084,1716568248506,-500.0,0.00027123,11]
[327872085,1716568248516,-1633.23,0.00027123,11]
[327872086,1716568248525,-709.0,0.00027123,11]
[327872087,1716568248534,-590.21,0.00027123,11]
[327872088,1716568248543,-602.32,0.00027123,11]
[327872089,1716568248551,-1018.95,0.00027123,11]
[327872090,1716568248561,-719.94,0.00027123,11]
[327872091,1716568248570,-601.86,0.00027123,11]
[327872092,1716568248579,-5206.65,0.00027123,11]
[327872093,1716568248588,-1810.43,0.00027123,11]
[327872094,1716568248597,-5609.35,0.00027123,11]
[327872095,1716568248607,-500.0,0.00027123,11]
[327872096,1716568248616,-500.0,0.00027123,11]
[327872097,1716568248626,-500.0,0.00027123,11]
[327872098,1716568248635,-697.67,0.00027123,11]
[327872099,1716568248644,-585.9,0.00027123,11]
[327872100,1716568248654,-4612.72,0.00027123,11]
[327872101,1716568248663,-151.0,0.00027174,7]
[327872102,1716568248672,-4226.56801723,0.00027245,2]
[327872103,1716568248681,-932.73908217,0.00027269,2]
[327872104,1716568248690,-417.57091557,0.0002729,2]
[327872105,1716568248700,-1137.40253748,0.0002739,2]
[327872106,1716568248709,-151.0,0.00027396,2]
[327872107,1716568248719,-151.0,0.00027396,2]
[327872108,1716568248728,-35299.97,0.00027396,21]
[327872109,1716568248738,-35299.97,0.00027396,21]
[327872110,1716568248747,-35299.97,0.00027396,21]
[327872111,1716568248756,-35299.97,0.00027396,21]
[327872112,1716568248765,-23839.60209294,0.00027396,21]
[327872113,1716568249022,-500.0,0.00024657,2]
[327872114,1716568249032,-500.0,0.00025753,6]
[327872115,1716568249042,-500.0,0.00026027,7]
[327872116,1716568249051,-500.0,0.00026301,8]
[327872117,1716568249061,-151.0,0.00026575,2]
[327872118,1716568249070,-500.0,0.00026575,9]
[327872119,1716568249079,-151.0,0.00026575,2]
[327872120,1716568249088,-500.0,0.00026849,10]
[327872121,1716568249097,-500.0,0.00027123,11]
[327872122,1716568249107,-11460.36858128,0.00027396,21]
[327872123,1716568249116,-151.0,0.00027396,2]
[327872124,1716568249126,-254.410392,0.00027396,2]
[327872125,1716568249136,-254.410392,0.00027396,2]
[327872126,1716568249145,-151.0,0.00027396,2]
[327872127,1716568249154,-500.0,0.00027397,12]
[327872128,1716568249164,-500.0,0.00027397,12]
[327872129,1716568249173,-500.0,0.00027397,12]
[327872130,1716568249183,-500.0,0.00027397,12]
[327872131,1716568249192,-500.0,0.00027397,12]
[327872132,1716568249202,-500.0,0.00027397,12]
[327872133,1716568249211,-500.0,0.00027397,12]
[327872134,1716568249221,-759.44,0.00027397,12]
[327872135,1716568249230,-500.0,0.00027397,12]
[327872136,1716568249239,-533.91,0.00027397,12]
[327872137,1716568249249,-500.0,0.00027397,12]
[327872138,1716568249259,-647.29,0.00027397,12]
[327872139,1716568249269,-500.0,0.00027397,12]
[327872140,1716568249279,-500.0,0.00027397,12]
[327872141,1716568249288,-602.44,0.00027397,12]
[327872142,1716568249297,-2767.02,0.00027397,12]
[327872143,1716568249309,-500.0,0.00027397,12]
[327872144,1716568249319,-880.44,0.00027397,12]
[327872145,1716568249328,-1824.81,0.00027397,2]
[327872146,1716568249337,-500.0,0.00027397,12]
[327872147,1716568249346,-500.0,0.00027397,12]
[327872148,1716568249356,-500.0,0.00027397,12]
[327872149,1716568249365,-656.46,0.00027397,12]
[327872150,1716568249374,-862.89,0.00027397,12]
[327872151,1716568249386,-500.0,0.00027397,12]
[327872152,1716568249395,-698.26,0.00027397,12]
[327872153,1716568249405,-569.15,0.00027397,12]
[327872154,1716568249415,-1670.0,0.00027397,12]
[327872155,1716568249424,-184.26359584,0.00027397,12]
[327872156,1716568249433,-1633.23,0.00027397,12]
[327872157,1716568249442,-709.0,0.00027397,12]
[327872158,1716568249451,-590.21,0.00027397,12]
[327872159,1716568249461,-602.32,0.00027397,12]
[327872160,1716568249471,-1018.95,0.00027397,12]
[327872161,1716568249481,-719.94,0.00027397,12]
[327872162,1716568249490,-601.86,0.00027397,12]
[327872163,1716568249499,-5206.65,0.00027397,12]
[327872164,1716568249509,-5609.35,0.00027397,12]
[327872165,1716568249518,-1810.43,0.00027397,12]
[327872166,1716568249527,-360.15601354,0.00027397,12]
[327872167,1716568249537,-500.0,0.00027397,12]
[327872168,1716568249547,-500.0,0.00027397,12]
[327872169,1716568249557,-697.67,0.00027397,12]
[327872170,1716568249566,-585.9,0.00027397,12]
[327872171,1716568249577,-500.0,0.00027397,2]
[327872172,1716568249586,-500.0,0.00027397,2]
[327872173,1716568249596,-427.06820242,0.00027397,2]
[327872174,1716568249606,-4612.72,0.00027397,12]
[327872175,1716568249615,-500.0,0.00027397,12]
[327872176,1716568249625,-300.0,0.000274,2]
[327872177,1716568249635,-151.0,0.0002767,2]
[327872178,1716568249644,-151.771481,0.0002767,2]
[327872179,1716568249654,-151.0,0.0002767,2]
[327872180,1716568249664,-151.771481,0.0002767,2]
[327872181,1716568249673,-801.585951,0.0002767,2]
[327872182,1716568249681,-801.585951,0.0002767,2]
[327872183,1716568249691,-151.0,0.0002767,2]
[327872184,1716568249700,-265.850114,0.0002767,2]
[327872185,1716568249709,-265.850114,0.0002767,2]
[327872186,1716568249719,-548.731622,0.0002767,2]
[327872187,1716568249728,-548.731622,0.0002767,2]
[327872188,1716568249737,-151.0,0.0002767,2]
[327872189,1716568249746,-166.810021,0.0002767,2]
[327872190,1716568249755,-166.810021,0.0002767,2]
[327872191,1716568249764,-151.0,0.0002767,2]
[327872192,1716568249773,-151.0,0.0002767,2]
[327872193,1716568249782,-311.049459,0.0002767,2]
[327872194,1716568249792,-311.049459,0.0002767,2]
[327872195,1716568249803,-500.0,0.00027671,13]
[327872196,1716568249814,-500.0,0.00027671,13]
[327872197,1716568249823,-500.0,0.00027671,13]
[327872198,1716568249834,-500.0,0.00027671,13]
[327872199,1716568249849,-500.0,0.00027671,13]
[327872200,1716568249859,-500.0,0.00027671,13]
[327872201,1716568249867,-759.44,0.00027671,13]
[327872202,1716568249877,-500.0,0.00027671,13]
[327872203,1716568249887,-533.91,0.00027671,13]
[327872204,1716568249897,-500.0,0.00027671,13]
[327872205,1716568249906,-647.29,0.00027671,13]
[327872206,1716568249917,-500.0,0.00027671,13]
[327872207,1716568249927,-500.0,0.00027671,13]
[327872208,1716568249936,-602.44,0.00027671,13]
[327872209,1716568249946,-2767.02,0.00027671,13]
[327872210,1716568249956,-400.89670093,0.00027671,13]
[327872211,1716568250009,-99.10329907,0.00027671,13]
[327872212,1716568250020,-880.44,0.00027671,13]
[327872213,1716568250030,-1824.81,0.00027671,2]
[327872214,1716568250039,-500.0,0.00027671,13]
[327872215,1716568250050,-500.0,0.00027671,13]
[327872216,1716568250059,-500.0,0.00027671,13]
[327872217,1716568250069,-656.46,0.00027671,13]
[327872218,1716568250078,-862.89,0.00027671,13]
[327872219,1716568250088,-500.0,0.00027671,13]
[327872220,1716568250098,-698.26,0.00027671,13]
[327872221,1716568250107,-569.15,0.00027671,13]
[327872222,1716568250118,-1670.0,0.00027671,13]
[327872223,1716568250128,-117.58814972,0.00027671,13]
[327872224,1716568257454,98.29949248,0.00017831,2]
[327872225,1716568257478,225.94334971,0.00017831,2]
[327872234,1716568841634,9300.09437231,0.00017,2]
[327872235,1716568841672,699.90562769,0.00017,2]
[327872243,1716568872280,733.4773594,9.999e-05,2]
[327872255,1716568975029,7566.61701291,9.999e-05,2]
[327872256,1716568975057,1133.84065285,9.999e-05,2]
[327872259,1716569155173,-362.83054871,0.00017458,2]
[327872260,1716569230173,-370.64681069,0.00017458,2]
[327872261,1716569230197,-160.27099543,0.00017459,2]
[327872262,1716569230224,-16253.33536936,0.00017461,2]
[327872263,1716569231154,-8646.66463064,0.00017461,2]
[327872264,1716569231181,-254.4842108,0.00017601,2]
[327872265,1716569231205,-867.6847757,0.00017601,2]
[327872266,1716569236107,-271.81827747,0.00017601,2]
[327872267,1716569247121,-181.08892415,0.00017601,2]
[327872268,1716569248092,-273.12028749,0.00017601,2]
[327872269,1716569249094,-242.38174398,0.00017601,2]
[327872271,1716569346113,-4901.87280721,0.00017601,2]
[327872272,1716569346135,-373.1622541,0.00017811,2]
[327872273,1716569346156,-428.27911,0.00017822,2]
[327872274,1716569346177,-384.63416588,0.00017831,2]
[327872275,1716569346200,-2914.12319317,0.00017831,2]
[327872276,1716569346220,-100.77885472,0.00018,2]
[327872277,1716569354096,-795.53331342,0.00018,2]
[327872278,1716569354117,-1205.91883219,0.00018415,2]
[327872279,1716569354326,-2101.41550773,0.00018416,2]
[327872280,1716569354346,-733.4773594,0.00019177,2]
[327872281,1716569354366,-170.365438,0.00019178,2]
[327872282,1716569354388,-836.10040355,0.00019244,2]
[327872346,1716569435975,254.30208741,0.000189,2]
[327872347,1716569435996,324.89187709,0.000189,2]
[327872364,1716569437737,-896.31216814,0.00019999,2]
[327872365,1716569437748,-733.4773594,0.00019999,2]
[327872366,1716569437764,-22859.27879206,0.0002,2]
[327872367,1716569437774,-3848.0431248,0.0002,2]
[327872368,1716569437784,-684.66208646,0.00020268,2]
[327872369,1716569437793,-228.6001014,0.00020268,2]
[327872370,1716569437802,-3596.55013945,0.00020268,2]
[327872371,1716569437812,-585.3334164,0.00020268,2]
[327872372,1716569437822,-163.33333268,0.00020268,2]
[327872373,1716569437831,-550.85396294,0.00020268,2]
[327872374,1716569437841,-175.6616625,0.00020268,2]
[327872375,1716569437850,-6173.44027474,0.00020268,2]
[327872376,1716569437860,-1196.62384614,0.00020269,2]
[327872377,1716569437870,-6886.17180479,0.00020271,2]
[327872378,1716569437879,-396.165,0.00020913,2]
[327872379,1716569437890,-500.0,0.00020913,2]
[327872380,1716569437900,-500.0,0.00020913,2]
[327872381,1716569437909,-500.0,0.00020913,2]
[327872382,1716569437919,-500.0,0.00020913,2]
[327872383,1716569437928,-500.0,0.00020913,2]
[327872384,1716569437938,-500.0,0.00020913,2]
[327872385,1716569437952,-500.0,0.00020913,2]
[327872386,1716569437962,-500.0,0.00020913,2]
[327872387,1716569437971,-500.0,0.00020913,2]
[327872388,1716569437980,-500.0,0.00020913,2]
[327872389,1716569437990,-500.0,0.00020913,2]
[327872390,1716569437999,-500.0,0.00020913,2]
[327872391,1716569438009,-500.0,0.00020913,2]
[327872392,1716569438018,-500.0,0.00020913,2]
[327872393,1716569438027,-500.0,0.00020913,2]
[327872394,1716569438036,-500.0,0.00020913,2]
[327872395,1716569438046,-500.0,0.00020913,2]